[Event "Titled Tuesday Blitz February 14 Early 2023"]
[White "Tymrakiewicz, Rafal"]
[Black "Golubev, Mikhail"]
[WhiteFideId "1108832"]
[BlackFideId "14100983"]
[WhiteElo "2144"]
[BlackElo "2461"]
[Result "0-1"]
[Round "10"]
[TimeControl "180+2"]
[Date "2023.02.14"]
[WhiteClock "0:00:01"]
[BlackClock "0:00:05"]

1. e4 {[%clk 0:03:00]}  c5 {[%clk 0:02:59]} 2. c3 {[%clk 0:03:00]}  d5 {[%clk 0:02:58]} 3. exd5 {[%clk 0:02:59]}  Nf6 {[%clk 0:02:59]} 4. d4 {[%clk 0:03:00]}  Nxd5 {[%clk 0:02:56]} 5. dxc5 {[%clk 0:02:57]}  e6 {[%clk 0:02:54]} 6. c4 {[%clk 0:02:53]}  Nb4 {[%clk 0:02:42]} 7. Qxd8+ {[%clk 0:02:44]}  Kxd8 {[%clk 0:02:42]} 8. Na3 {[%clk 0:02:43]}  Bxc5 {[%clk 0:02:42]} 9. Be3 {[%clk 0:02:37]}  Bxe3 {[%clk 0:02:39]} 10. fxe3 {[%clk 0:02:37]}  Ke7 {[%clk 0:02:34]} 11. Nf3 {[%clk 0:02:33]}  b6 {[%clk 0:02:22]} 12. Be2 {[%clk 0:02:32]}  Bb7 {[%clk 0:02:22]} 13. Kf2 {[%clk 0:02:32]}  Nd7 {[%clk 0:02:18]} 14. Rhd1 {[%clk 0:02:26]}  Nf6 {[%clk 0:02:13]} 15. Ne5 {[%clk 0:02:24]}  Rac8 {[%clk 0:01:57]} 16. Bf3 {[%clk 0:02:20]}  Bxf3 {[%clk 0:01:35]} 17. gxf3 {[%clk 0:02:17]}  Rc5 {[%clk 0:01:29]} 18. Nd3 {[%clk 0:02:09]}  Nxd3+ {[%clk 0:01:27]} 19. Rxd3 {[%clk 0:02:10]}  Rhc8 {[%clk 0:01:06]} 20. Rad1 {[%clk 0:02:09]}  Ra5 {[%clk 0:00:53]} 21. R1d2 {[%clk 0:02:02]}  a6 {[%clk 0:00:41]} 22. Rb3 {[%clk 0:01:59]}  Nd7 {[%clk 0:00:34]} 23. Rc3 {[%clk 0:01:44]}  b5 {[%clk 0:00:24]} 24. b4 {[%clk 0:00:44]}  Ra4 {[%clk 0:00:23]} 25. Rb2 {[%clk 0:00:39]}  Nb6 {[%clk 0:00:10]} 26. c5 {[%clk 0:00:32]}  Nd5 {[%clk 0:00:10]} 27. Rcb3 {[%clk 0:00:33]}  Nxb4 {[%clk 0:00:10]} 28. Nxb5 {[%clk 0:00:27]}  axb5 {[%clk 0:00:10]} 29. Rxb4 {[%clk 0:00:27]}  Rxb4 {[%clk 0:00:10]} 30. Rxb4 {[%clk 0:00:27]}  Rxc5 {[%clk 0:00:10]} 31. Rb2 {[%clk 0:00:27]}  e5 {[%clk 0:00:09]} 32. Ke2 {[%clk 0:00:26]}  f5 {[%clk 0:00:09]} 33. Kd3 {[%clk 0:00:26]}  Ke6 {[%clk 0:00:09]} 34. a4 {[%clk 0:00:18]}  bxa4 {[%clk 0:00:08]} 35. Rb6+ {[%clk 0:00:19]}  Ke7 {[%clk 0:00:08]} 36. Ra6 {[%clk 0:00:19]}  Rd5+ {[%clk 0:00:07]} 37. Kc3 {[%clk 0:00:18]}  e4 {[%clk 0:00:06]} 38. fxe4 {[%clk 0:00:18]}  fxe4 {[%clk 0:00:06]} 39. Rxa4 {[%clk 0:00:18]}  Rd3+ {[%clk 0:00:07]} 40. Kc4 {[%clk 0:00:16]}  Rxe3 {[%clk 0:00:07]} 41. Kd5 {[%clk 0:00:16]}  Re1 {[%clk 0:00:07]} 42. Ke5 {[%clk 0:00:16]}  e3 {[%clk 0:00:07]} 43. Ra7+ {[%clk 0:00:16]}  Kd8 {[%clk 0:00:07]} 44. Ke4 {[%clk 0:00:16]}  e2 {[%clk 0:00:06]} 45. Ke3 {[%clk 0:00:17]}  Rh1 {[%clk 0:00:06]} 46. Kxe2 {[%clk 0:00:15]}  Rxh2+ {[%clk 0:00:06]} 47. Kf3 {[%clk 0:00:15]}  g6 {[%clk 0:00:05]} 48. Kg3 {[%clk 0:00:09]}  Rh1 {[%clk 0:00:04]} 49. Rf7 {[%clk 0:00:07]}  Rh5 {[%clk 0:00:04]} 50. Kg4 {[%clk 0:00:05]}  Ke8 {[%clk 0:00:05]} 51. Rf1 {[%clk 0:00:04]}  Ke7 {[%clk 0:00:05]} 52. Rf2 {[%clk 0:00:05]}  Re5 {[%clk 0:00:04]} 53. Rf1 {[%clk 0:00:03]}  h5+ {[%clk 0:00:04]} 54. Kh4 {[%clk 0:00:03]}  Ke6 {[%clk 0:00:04]} 55. Rf8 {[%clk 0:00:03]}  Rf5 {[%clk 0:00:05]} 56. Re8+ {[%clk 0:00:02]}  Kf7 {[%clk 0:00:05]} 57. Re3 {[%clk 0:00:01]}  Kg7 {[%clk 0:00:05]} 0-1


[Site "https://www.chess.com"]

[Event "Titled Tuesday Blitz February 14 Early 2023"]
[White "Todorovic, Bojan"]
[Black "Berezin, Viktor"]
[WhiteFideId "917087"]
[BlackFideId "14107872"]
[WhiteElo "2195"]
[BlackElo "2307"]
[Result "0-1"]
[Round "10"]
[TimeControl "180+2"]
[Date "2023.02.14"]
[WhiteClock "0:00:02"]
[BlackClock "0:00:56"]

1. d4 {[%clk 0:02:59]}  Nf6 {[%clk 0:03:00]} 2. c4 {[%clk 0:02:58]}  g6 {[%clk 0:03:00]} 3. Nc3 {[%clk 0:02:58]}  Bg7 {[%clk 0:03:00]} 4. e4 {[%clk 0:02:57]}  O-O {[%clk 0:03:01]} 5. Be2 {[%clk 0:02:57]}  d6 {[%clk 0:03:01]} 6. Nf3 {[%clk 0:02:57]}  e5 {[%clk 0:03:02]} 7. O-O {[%clk 0:02:56]}  Na6 {[%clk 0:03:01]} 8. Be3 {[%clk 0:02:46]}  Qe7 {[%clk 0:02:58]} 9. d5 {[%clk 0:02:22]}  Nc5 {[%clk 0:02:56]} 10. Nd2 {[%clk 0:02:21]}  a5 {[%clk 0:02:55]} 11. a3 {[%clk 0:02:20]}  Ne8 {[%clk 0:02:46]} 12. b4 {[%clk 0:02:17]}  axb4 {[%clk 0:02:40]} 13. axb4 {[%clk 0:02:17]}  Rxa1 {[%clk 0:02:40]} 14. Qxa1 {[%clk 0:02:17]}  Na6 {[%clk 0:02:41]} 15. Qa3 {[%clk 0:02:08]}  f5 {[%clk 0:02:40]} 16. f3 {[%clk 0:02:02]}  f4 {[%clk 0:02:40]} 17. Bf2 {[%clk 0:02:01]}  Nf6 {[%clk 0:02:39]} 18. c5 {[%clk 0:02:01]}  g5 {[%clk 0:02:32]} 19. Nc4 {[%clk 0:01:28]}  g4 {[%clk 0:02:22]} 20. cxd6 {[%clk 0:01:20]}  cxd6 {[%clk 0:02:21]} 21. b5 {[%clk 0:01:01]}  Nc5 {[%clk 0:02:16]} 22. Bxc5 {[%clk 0:00:59]}  dxc5 {[%clk 0:02:16]} 23. d6 {[%clk 0:00:32]}  Qe8 {[%clk 0:01:45]} 24. Qxc5 {[%clk 0:00:31]}  g3 {[%clk 0:01:11]} 25. h3 {[%clk 0:00:19]}  Qh5 {[%clk 0:00:58]} 26. Qxe5 {[%clk 0:00:17]}  Qh4 {[%clk 0:00:59]} 27. Nb6 {[%clk 0:00:03]}  Bxh3 {[%clk 0:00:58]} 28. Bc4+ {[%clk 0:00:02]}  Kh8 {[%clk 0:00:56]} 0-1


[Site "https://www.chess.com"]

[Event "Titled Tuesday Blitz February 14 Early 2023"]
[White "EREBUNI91"]
[Black "Cella, Glaucio Dalla Cortt"]
[BlackFideId "2119455"]
[WhiteElo "2719"]
[BlackElo "1894"]
[Result "1-0"]
[Round "10"]
[TimeControl "180+2"]
[Date "2023.02.14"]
[WhiteClock "0:00:29"]
[BlackClock "0:00:29"]

1. e4 {[%clk 0:03:00]}  c5 {[%clk 0:02:54]} 2. Nc3 {[%clk 0:02:56]}  e6 {[%clk 0:02:55]} 3. Nf3 {[%clk 0:02:56]}  Nc6 {[%clk 0:02:56]} 4. Bb5 {[%clk 0:02:56]}  Nd4 {[%clk 0:02:56]} 5. Nxd4 {[%clk 0:02:55]}  cxd4 {[%clk 0:02:57]} 6. Ne2 {[%clk 0:02:56]}  a6 {[%clk 0:02:55]} 7. Bd3 {[%clk 0:02:46]}  d5 {[%clk 0:02:52]} 8. O-O {[%clk 0:02:33]}  dxe4 {[%clk 0:02:36]} 9. Bxe4 {[%clk 0:02:34]}  Nf6 {[%clk 0:02:36]} 10. Bf3 {[%clk 0:02:32]}  Bc5 {[%clk 0:02:35]} 11. d3 {[%clk 0:02:31]}  O-O {[%clk 0:02:27]} 12. Ng3 {[%clk 0:02:30]}  Nd5 {[%clk 0:02:19]} 13. Re1 {[%clk 0:02:20]}  Bd6 {[%clk 0:02:19]} 14. Qe2 {[%clk 0:01:52]}  Bd7 {[%clk 0:02:12]} 15. Bxd5 {[%clk 0:01:22]}  exd5 {[%clk 0:02:13]} 16. Qh5 {[%clk 0:01:21]}  Bxg3 {[%clk 0:01:56]} 17. hxg3 {[%clk 0:01:22]}  Be6 {[%clk 0:01:57]} 18. Qe5 {[%clk 0:01:09]}  Re8 {[%clk 0:01:55]} 19. Qxd4 {[%clk 0:01:06]}  Rc8 {[%clk 0:01:52]} 20. c3 {[%clk 0:01:03]}  Bf5 {[%clk 0:01:46]} 21. Rxe8+ {[%clk 0:01:01]}  Qxe8 {[%clk 0:01:47]} 22. Be3 {[%clk 0:00:58]}  Qb5 {[%clk 0:01:41]} 23. Qe5 {[%clk 0:00:33]}  Qxd3 {[%clk 0:01:39]} 24. Bd4 {[%clk 0:00:33]}  f6 {[%clk 0:01:20]} 25. Qxd5+ {[%clk 0:00:33]}  Kh8 {[%clk 0:01:20]} 26. Re1 {[%clk 0:00:32]}  h5 {[%clk 0:01:11]} 27. Re7 {[%clk 0:00:31]}  Qb1+ {[%clk 0:00:39]} 28. Kh2 {[%clk 0:00:30]}  Qxb2 {[%clk 0:00:39]} 29. Qf7 {[%clk 0:00:28]}  Rg8 {[%clk 0:00:29]} 30. Bxf6 {[%clk 0:00:29]} 1-0


[Site "https://www.chess.com"]

[Event "Titled Tuesday Blitz February 14 Early 2023"]
[White "Toncheva, Nadya"]
[Black "Alex_Sahakyan2006"]
[WhiteFideId "2924056"]
[WhiteElo "2295"]
[BlackElo "2715"]
[Result "0-1"]
[Round "10"]
[TimeControl "180+2"]
[Date "2023.02.14"]
[WhiteClock "0:00:20"]
[BlackClock "0:01:13"]

1. e4 {[%clk 0:03:00]}  c6 {[%clk 0:02:58]} 2. d4 {[%clk 0:03:01]}  d5 {[%clk 0:02:58]} 3. Nc3 {[%clk 0:03:01]}  dxe4 {[%clk 0:02:59]} 4. Nxe4 {[%clk 0:03:02]}  Nd7 {[%clk 0:03:00]} 5. Nf3 {[%clk 0:03:01]}  Ngf6 {[%clk 0:03:00]} 6. Bd3 {[%clk 0:03:00]}  Nxe4 {[%clk 0:03:00]} 7. Bxe4 {[%clk 0:03:01]}  Nf6 {[%clk 0:03:01]} 8. Bd3 {[%clk 0:03:02]}  Bg4 {[%clk 0:03:02]} 9. c3 {[%clk 0:03:01]}  e6 {[%clk 0:03:02]} 10. h3 {[%clk 0:02:59]}  Bxf3 {[%clk 0:03:03]} 11. Qxf3 {[%clk 0:02:59]}  h6 {[%clk 0:03:01]} 12. O-O {[%clk 0:02:58]}  Bd6 {[%clk 0:03:01]} 13. Re1 {[%clk 0:02:57]}  O-O {[%clk 0:03:01]} 14. b3 {[%clk 0:02:41]}  Re8 {[%clk 0:03:01]} 15. Bb2 {[%clk 0:02:40]}  e5 {[%clk 0:03:01]} 16. dxe5 {[%clk 0:02:37]}  Bxe5 {[%clk 0:02:57]} 17. Rad1 {[%clk 0:02:36]}  Qc7 {[%clk 0:02:51]} 18. Bb1 {[%clk 0:02:26]}  Re7 {[%clk 0:02:36]} 19. Ba3 {[%clk 0:02:12]}  c5 {[%clk 0:02:29]} 20. Re3 {[%clk 0:01:35]}  Rae8 {[%clk 0:02:25]} 21. Rde1 {[%clk 0:01:30]}  b6 {[%clk 0:02:17]} 22. Bb2 {[%clk 0:01:04]}  Qd6 {[%clk 0:02:09]} 23. Kh1 {[%clk 0:00:58]}  Qd2 {[%clk 0:01:59]} 24. Qe2 {[%clk 0:00:56]}  Qd8 {[%clk 0:01:22]} 25. c4 {[%clk 0:00:44]}  Bd6 {[%clk 0:01:15]} 26. Bxf6 {[%clk 0:00:44]}  Rxe3 {[%clk 0:01:14]} 27. fxe3 {[%clk 0:00:30]}  Qxf6 {[%clk 0:01:14]} 28. Qd3 {[%clk 0:00:27]}  Qe5 {[%clk 0:01:13]} 29. Kg1 {[%clk 0:00:21]}  Qh2+ {[%clk 0:01:13]} 30. Kf1 {[%clk 0:00:20]}  Qh1+ {[%clk 0:01:13]} 31. Kf2 {[%clk 0:00:20]}  Bg3+ {[%clk 0:01:13]} 0-1


[Site "https://www.chess.com"]

[Event "Titled Tuesday Blitz February 14 Early 2023"]
[White "Khamdamova, Afruza"]
[Black "Janaszak, Dawid"]
[WhiteFideId "14210444"]
[BlackFideId "1119206"]
[WhiteElo "2162"]
[BlackElo "2316"]
[Result "1-0"]
[Round "10"]
[TimeControl "180+2"]
[Date "2023.02.14"]
[WhiteClock "0:00:13"]
[BlackClock "0:00:01"]

1. e4 {[%clk 0:03:00]}  e5 {[%clk 0:02:43]} 2. Nf3 {[%clk 0:03:01]}  Nc6 {[%clk 0:02:42]} 3. Bb5 {[%clk 0:03:00]}  a6 {[%clk 0:02:38]} 4. Ba4 {[%clk 0:02:59]}  Nf6 {[%clk 0:02:39]} 5. d3 {[%clk 0:02:59]}  Bc5 {[%clk 0:02:38]} 6. O-O {[%clk 0:02:59]}  b5 {[%clk 0:02:37]} 7. Bb3 {[%clk 0:02:59]}  O-O {[%clk 0:02:35]} 8. c3 {[%clk 0:02:59]}  d6 {[%clk 0:02:34]} 9. Bg5 {[%clk 0:02:57]}  h6 {[%clk 0:02:34]} 10. Bh4 {[%clk 0:02:57]}  Qe7 {[%clk 0:02:30]} 11. Nbd2 {[%clk 0:02:55]}  Nd8 {[%clk 0:02:28]} 12. d4 {[%clk 0:02:53]}  Bb6 {[%clk 0:02:28]} 13. Qe2 {[%clk 0:02:49]}  Ne6 {[%clk 0:02:27]} 14. dxe5 {[%clk 0:02:48]}  Nf4 {[%clk 0:02:27]} 15. Qd1 {[%clk 0:02:44]}  dxe5 {[%clk 0:02:27]} 16. a4 {[%clk 0:02:27]}  Bg4 {[%clk 0:02:25]} 17. Qc2 {[%clk 0:02:22]}  Rad8 {[%clk 0:02:20]} 18. axb5 {[%clk 0:02:21]}  axb5 {[%clk 0:02:21]} 19. Bg3 {[%clk 0:02:17]}  N6h5 {[%clk 0:02:20]} 20. c4 {[%clk 0:02:05]}  Nxg3 {[%clk 0:01:52]} 21. hxg3 {[%clk 0:02:05]}  Ne2+ {[%clk 0:01:31]} 22. Kh1 {[%clk 0:02:05]}  c6 {[%clk 0:01:20]} 23. Nh2 {[%clk 0:01:46]}  Qg5 {[%clk 0:01:15]} 24. Ndf3 {[%clk 0:01:41]}  Bxf3 {[%clk 0:01:11]} 25. gxf3 {[%clk 0:01:39]}  Rd2 {[%clk 0:01:05]} 26. f4 {[%clk 0:01:27]}  Rxc2 {[%clk 0:00:51]} 27. fxg5 {[%clk 0:01:26]}  Rxb2 {[%clk 0:00:52]} 28. Rab1 {[%clk 0:01:20]}  Rxb1 {[%clk 0:00:51]} 29. Rxb1 {[%clk 0:01:20]}  hxg5 {[%clk 0:00:47]} 30. Ng4 {[%clk 0:01:15]}  Bd4 {[%clk 0:00:44]} 31. cxb5 {[%clk 0:01:13]}  cxb5 {[%clk 0:00:44]} 32. Kg2 {[%clk 0:01:06]}  g6 {[%clk 0:00:41]} 33. Nf6+ {[%clk 0:01:03]}  Kg7 {[%clk 0:00:41]} 34. Nd5 {[%clk 0:00:56]}  f5 {[%clk 0:00:36]} 35. Kf3 {[%clk 0:00:52]}  Nc3 {[%clk 0:00:29]} 36. Nxc3 {[%clk 0:00:52]}  Bxc3 {[%clk 0:00:30]} 37. exf5 {[%clk 0:00:48]}  gxf5 {[%clk 0:00:28]} 38. Rd1 {[%clk 0:00:41]}  e4+ {[%clk 0:00:27]} 39. Ke2 {[%clk 0:00:41]}  f4 {[%clk 0:00:20]} 40. Rd7+ {[%clk 0:00:38]}  Kf6 {[%clk 0:00:19]} 41. Rd6+ {[%clk 0:00:38]}  Kf5 {[%clk 0:00:15]} 42. Rb6 {[%clk 0:00:29]}  b4 {[%clk 0:00:14]} 43. Rb5+ {[%clk 0:00:23]}  Kf6 {[%clk 0:00:13]} 44. g4 {[%clk 0:00:20]}  Rd8 {[%clk 0:00:10]} 45. Rf5+ {[%clk 0:00:20]}  Kg6 {[%clk 0:00:10]} 46. Bd5 {[%clk 0:00:17]}  e3 {[%clk 0:00:07]} 47. fxe3 {[%clk 0:00:16]}  fxe3 {[%clk 0:00:08]} 48. Kxe3 {[%clk 0:00:17]}  Re8+ {[%clk 0:00:08]} 49. Kd3 {[%clk 0:00:16]}  Re1 {[%clk 0:00:08]} 50. Be4 {[%clk 0:00:14]}  Kh6 {[%clk 0:00:08]} 51. Rf7 {[%clk 0:00:13]}  Rxe4 {[%clk 0:00:06]} 52. Kxe4 {[%clk 0:00:13]}  b3 {[%clk 0:00:07]} 53. Rb7 {[%clk 0:00:13]}  b2 {[%clk 0:00:07]} 54. Kf5 {[%clk 0:00:14]}  Bd4 {[%clk 0:00:06]} 55. Ke4 {[%clk 0:00:13]}  Bc3 {[%clk 0:00:06]} 56. Rb3 {[%clk 0:00:13]}  Bg7 {[%clk 0:00:05]} 57. Kf5 {[%clk 0:00:13]}  Bd4 {[%clk 0:00:04]} 58. Rb7 {[%clk 0:00:13]}  Bc3 {[%clk 0:00:04]} 59. Rb6+ {[%clk 0:00:13]}  Kh7 {[%clk 0:00:04]} 60. Kxg5 {[%clk 0:00:14]}  Bd2+ {[%clk 0:00:04]} 61. Kf5 {[%clk 0:00:14]}  Bc1 {[%clk 0:00:05]} 62. Rb3 {[%clk 0:00:14]}  Kh6 {[%clk 0:00:04]} 63. g5+ {[%clk 0:00:14]}  Bxg5 {[%clk 0:00:04]} 64. Rh3+ {[%clk 0:00:14]}  Kg7 {[%clk 0:00:04]} 65. Rb3 {[%clk 0:00:13]}  Bc1 {[%clk 0:00:04]} 66. Rb7+ {[%clk 0:00:13]}  Kf8 {[%clk 0:00:04]} 67. Kf6 {[%clk 0:00:12]}  Ke8 {[%clk 0:00:04]} 68. Ke6 {[%clk 0:00:13]}  Kd8 {[%clk 0:00:05]} 69. Kd6 {[%clk 0:00:13]}  Kc8 {[%clk 0:00:05]} 70. Rb3 {[%clk 0:00:14]}  Bf4+ {[%clk 0:00:03]} 71. Kc6 {[%clk 0:00:13]}  Be5 {[%clk 0:00:03]} 72. Rb5 {[%clk 0:00:13]}  Kd8 {[%clk 0:00:03]} 73. Rd5+ {[%clk 0:00:12]}  Kc8 {[%clk 0:00:01]} 74. Rxe5 {[%clk 0:00:13]}  Kd8 {[%clk 0:00:01]} 75. Rb5 {[%clk 0:00:13]} 1-0


[Site "https://www.chess.com"]

[Event "Titled Tuesday Blitz February 14 Early 2023"]
[White "Gurevich, Dmitry"]
[Black "Vlassov, Nikolai"]
[WhiteFideId "2000407"]
[BlackFideId "4103360"]
[WhiteElo "2393"]
[BlackElo "2283"]
[Result "0-1"]
[Round "10"]
[TimeControl "180+2"]
[Date "2023.02.14"]
[WhiteClock "0:00:02"]
[BlackClock "0:00:11"]

1. d4 {[%clk 0:03:00]}  Nf6 {[%clk 0:02:59]} 2. c4 {[%clk 0:03:00]}  Nc6 {[%clk 0:02:59]} 3. Nf3 {[%clk 0:02:59]}  e6 {[%clk 0:02:59]} 4. Nc3 {[%clk 0:02:59]}  Bb4 {[%clk 0:02:58]} 5. Qc2 {[%clk 0:02:59]}  d6 {[%clk 0:02:57]} 6. Bd2 {[%clk 0:02:58]}  O-O {[%clk 0:02:56]} 7. a3 {[%clk 0:02:59]}  Bxc3 {[%clk 0:02:56]} 8. Bxc3 {[%clk 0:02:59]}  Qe7 {[%clk 0:02:56]} 9. e3 {[%clk 0:02:59]}  e5 {[%clk 0:02:56]} 10. dxe5 {[%clk 0:02:59]}  dxe5 {[%clk 0:02:56]} 11. Be2 {[%clk 0:02:59]}  Bg4 {[%clk 0:02:56]} 12. b4 {[%clk 0:02:55]}  e4 {[%clk 0:02:47]} 13. Nd4 {[%clk 0:02:54]}  Bxe2 {[%clk 0:02:40]} 14. Nxc6 {[%clk 0:02:44]}  bxc6 {[%clk 0:02:40]} 15. Qxe2 {[%clk 0:02:44]}  Rfd8 {[%clk 0:02:34]} 16. O-O {[%clk 0:02:42]}  Rd3 {[%clk 0:02:32]} 17. Rac1 {[%clk 0:02:41]}  a5 {[%clk 0:02:30]} 18. f3 {[%clk 0:02:38]}  axb4 {[%clk 0:02:25]} 19. axb4 {[%clk 0:02:23]}  Ra3 {[%clk 0:02:10]} 20. Bxf6 {[%clk 0:02:12]}  Qxf6 {[%clk 0:02:05]} 21. fxe4 {[%clk 0:02:11]}  Qg5 {[%clk 0:01:42]} 22. Rcd1 {[%clk 0:01:56]}  Rxd1 {[%clk 0:01:33]} 23. Rxd1 {[%clk 0:01:55]}  h5 {[%clk 0:01:26]} 24. Qf3 {[%clk 0:01:43]}  Rxe3 {[%clk 0:01:18]} 25. Rd8+ {[%clk 0:01:21]}  Qxd8 {[%clk 0:00:57]} 26. Qxe3 {[%clk 0:01:21]}  Qd1+ {[%clk 0:00:56]} 27. Kf2 {[%clk 0:01:20]}  Qc2+ {[%clk 0:00:55]} 28. Qe2 {[%clk 0:01:18]}  Qc3 {[%clk 0:00:45]} 29. e5 {[%clk 0:01:09]}  Qxb4 {[%clk 0:00:38]} 30. e6 {[%clk 0:01:09]}  Qc5+ {[%clk 0:00:38]} 31. Kf3 {[%clk 0:01:02]}  Qf5+ {[%clk 0:00:22]} 32. Kg3 {[%clk 0:00:59]}  fxe6 {[%clk 0:00:21]} 33. h3 {[%clk 0:00:53]}  Kf7 {[%clk 0:00:20]} 34. Qe3 {[%clk 0:00:42]}  Ke7 {[%clk 0:00:20]} 35. Qa7 {[%clk 0:00:36]}  Kd6 {[%clk 0:00:19]} 36. Qd4+ {[%clk 0:00:34]}  Ke7 {[%clk 0:00:18]} 37. Qxg7+ {[%clk 0:00:33]}  Kd6 {[%clk 0:00:19]} 38. Qd4+ {[%clk 0:00:32]}  Ke7 {[%clk 0:00:19]} 39. Qf4 {[%clk 0:00:29]}  Qg6+ {[%clk 0:00:15]} 40. Kh4 {[%clk 0:00:27]}  Qxg2 {[%clk 0:00:13]} 41. Qxc7+ {[%clk 0:00:22]}  Kf6 {[%clk 0:00:12]} 42. Qf4+ {[%clk 0:00:20]}  Kg6 {[%clk 0:00:12]} 43. Qe3 {[%clk 0:00:14]}  Kf5 {[%clk 0:00:12]} 44. Qc5+ {[%clk 0:00:12]}  e5 {[%clk 0:00:12]} 45. Qf8+ {[%clk 0:00:10]}  Ke4 {[%clk 0:00:12]} 46. Qe8 {[%clk 0:00:07]}  Kd4 {[%clk 0:00:10]} 47. Qxh5 {[%clk 0:00:04]}  e4 {[%clk 0:00:09]} 48. Qd1+ {[%clk 0:00:03]}  Kxc4 {[%clk 0:00:10]} 49. Qc1+ {[%clk 0:00:04]}  Kd5 {[%clk 0:00:10]} 50. Qd1+ {[%clk 0:00:03]}  Ke5 {[%clk 0:00:10]} 51. Qh5+ {[%clk 0:00:02]}  Kd4 {[%clk 0:00:10]} 52. Qd1+ {[%clk 0:00:02]}  Ke3 {[%clk 0:00:11]} 53. Qc1+ {[%clk 0:00:02]}  Kf3 {[%clk 0:00:10]} 54. Qxc6 {[%clk 0:00:02]}  Qg3+ {[%clk 0:00:10]} 55. Kh5 {[%clk 0:00:02]}  Qxh3+ {[%clk 0:00:10]} 56. Kg5 {[%clk 0:00:03]}  Qg3+ {[%clk 0:00:11]} 57. Kf5 {[%clk 0:00:03]}  Qf4+ {[%clk 0:00:11]} 58. Ke6 {[%clk 0:00:03]}  Kf2 {[%clk 0:00:12]} 59. Qc2+ {[%clk 0:00:02]}  Kg3 {[%clk 0:00:12]} 60. Qc3+ {[%clk 0:00:02]}  e3 {[%clk 0:00:12]} 61. Qg7+ {[%clk 0:00:02]}  Qg4+ {[%clk 0:00:11]} 0-1


[Site "https://www.chess.com"]

[Event "Titled Tuesday Blitz February 14 Early 2023"]
[White "Ordekalog"]
[Black "Kulkarni, Vikramaditya"]
[BlackFideId "5009847"]
[WhiteElo "2544"]
[BlackElo "2251"]
[Result "1-0"]
[Round "10"]
[TimeControl "180+2"]
[Date "2023.02.14"]
[WhiteClock "0:00:28"]
[BlackClock "0:00:10"]

1. d4 {[%clk 0:03:00]}  d6 {[%clk 0:03:00]} 2. e4 {[%clk 0:02:58]}  Nf6 {[%clk 0:03:00]} 3. Nc3 {[%clk 0:02:56]}  e5 {[%clk 0:03:01]} 4. Nf3 {[%clk 0:02:56]}  Nbd7 {[%clk 0:02:59]} 5. Bc4 {[%clk 0:02:55]}  Be7 {[%clk 0:02:59]} 6. a4 {[%clk 0:02:53]}  a5 {[%clk 0:02:52]} 7. O-O {[%clk 0:02:52]}  c6 {[%clk 0:02:51]} 8. b3 {[%clk 0:02:48]}  O-O {[%clk 0:02:51]} 9. Ba3 {[%clk 0:02:47]}  Qe8 {[%clk 0:02:43]} 10. Re1 {[%clk 0:02:38]}  Kh8 {[%clk 0:02:43]} 11. dxe5 {[%clk 0:02:32]}  dxe5 {[%clk 0:02:42]} 12. Bd6 {[%clk 0:02:32]}  Nb6 {[%clk 0:02:33]} 13. Nxe5 {[%clk 0:02:23]}  Nxc4 {[%clk 0:02:32]} 14. Nxc4 {[%clk 0:02:22]}  Be6 {[%clk 0:02:32]} 15. Bxe7 {[%clk 0:02:10]}  Qxe7 {[%clk 0:02:30]} 16. Qd6 {[%clk 0:02:10]}  Qe8 {[%clk 0:02:18]} 17. Nb6 {[%clk 0:02:10]}  Qd8 {[%clk 0:02:08]} 18. Qxd8 {[%clk 0:01:57]}  Raxd8 {[%clk 0:02:08]} 19. Rad1 {[%clk 0:01:56]}  g6 {[%clk 0:01:52]} 20. f3 {[%clk 0:01:55]}  Kg7 {[%clk 0:01:50]} 21. Kf2 {[%clk 0:01:55]}  Nh5 {[%clk 0:01:46]} 22. Ke3 {[%clk 0:01:52]}  g5 {[%clk 0:01:42]} 23. g3 {[%clk 0:01:48]}  Kf6 {[%clk 0:01:40]} 24. Rxd8 {[%clk 0:01:43]}  Rxd8 {[%clk 0:01:39]} 25. f4 {[%clk 0:01:39]}  gxf4+ {[%clk 0:01:34]} 26. gxf4 {[%clk 0:01:40]}  Re8 {[%clk 0:01:25]} 27. Kf3 {[%clk 0:01:33]}  Bh3 {[%clk 0:01:10]} 28. Nc4 {[%clk 0:01:25]}  Rg8 {[%clk 0:01:09]} 29. Ne3 {[%clk 0:01:19]}  Rd8 {[%clk 0:01:02]} 30. e5+ {[%clk 0:01:13]}  Ke6 {[%clk 0:01:00]} 31. Ne4 {[%clk 0:01:12]}  h6 {[%clk 0:00:51]} 32. Nc5+ {[%clk 0:01:11]}  Ke7 {[%clk 0:00:50]} 33. Nxb7 {[%clk 0:01:09]}  Rd2 {[%clk 0:00:49]} 34. Nxa5 {[%clk 0:01:02]}  c5 {[%clk 0:00:45]} 35. Nac4 {[%clk 0:00:53]}  Rxh2 {[%clk 0:00:44]} 36. a5 {[%clk 0:00:52]}  Bd7 {[%clk 0:00:40]} 37. Nd5+ {[%clk 0:00:49]}  Ke6 {[%clk 0:00:38]} 38. Nc7+ {[%clk 0:00:48]}  Ke7 {[%clk 0:00:32]} 39. Nd5+ {[%clk 0:00:37]}  Ke6 {[%clk 0:00:30]} 40. Nce3 {[%clk 0:00:38]}  Bc6 {[%clk 0:00:19]} 41. f5+ {[%clk 0:00:33]}  Kxe5 {[%clk 0:00:13]} 42. Ng4+ {[%clk 0:00:32]}  Kxf5 {[%clk 0:00:13]} 43. Re5+ {[%clk 0:00:30]}  Kg6 {[%clk 0:00:11]} 44. Nxh2 {[%clk 0:00:30]}  f6 {[%clk 0:00:10]} 45. Rxh5 {[%clk 0:00:27]}  Kxh5 {[%clk 0:00:10]} 46. c4 {[%clk 0:00:28]} 1-0


[Site "https://www.chess.com"]

[Event "Titled Tuesday Blitz February 14 Early 2023"]
[White "Petukhov, Dmitry"]
[Black "Koridze, Lile"]
[WhiteFideId "4142748"]
[BlackFideId "13612514"]
[WhiteElo "2350"]
[BlackElo "2191"]
[Result "1-0"]
[Round "10"]
[TimeControl "180+2"]
[Date "2023.02.14"]
[WhiteClock "0:01:24"]
[BlackClock "0:01:45"]

1. e4 {[%clk 0:03:00]}  c5 {[%clk 0:02:58]} 2. c3 {[%clk 0:02:59]}  Nf6 {[%clk 0:02:57]} 3. e5 {[%clk 0:02:59]}  Nd5 {[%clk 0:02:55]} 4. d4 {[%clk 0:02:59]}  cxd4 {[%clk 0:02:55]} 5. Nf3 {[%clk 0:02:59]}  Nc6 {[%clk 0:02:55]} 6. Bc4 {[%clk 0:02:58]}  Nb6 {[%clk 0:02:55]} 7. Bb3 {[%clk 0:02:59]}  d5 {[%clk 0:02:55]} 8. exd6 {[%clk 0:02:59]}  Qxd6 {[%clk 0:02:55]} 9. O-O {[%clk 0:03:00]}  e6 {[%clk 0:02:55]} 10. cxd4 {[%clk 0:02:58]}  Be7 {[%clk 0:02:54]} 11. Nc3 {[%clk 0:02:58]}  a6 {[%clk 0:02:54]} 12. d5 {[%clk 0:02:58]}  exd5 {[%clk 0:02:53]} 13. Nxd5 {[%clk 0:02:59]}  Nxd5 {[%clk 0:02:52]} 14. Qxd5 {[%clk 0:02:59]}  O-O {[%clk 0:02:51]} 15. Qxd6 {[%clk 0:02:54]}  Bxd6 {[%clk 0:02:51]} 16. Be3 {[%clk 0:02:55]}  Bf5 {[%clk 0:02:47]} 17. Rfd1 {[%clk 0:02:52]}  Be7 {[%clk 0:02:46]} 18. Nd4 {[%clk 0:02:50]}  Nxd4 {[%clk 0:02:44]} 19. Bxd4 {[%clk 0:02:47]}  Rfd8 {[%clk 0:02:44]} 20. Bb6 {[%clk 0:02:41]}  Rxd1+ {[%clk 0:02:40]} 21. Rxd1 {[%clk 0:02:42]}  Bf6 {[%clk 0:02:40]} 22. Rc1 {[%clk 0:02:33]}  Bxb2 {[%clk 0:02:34]} 23. Rc7 {[%clk 0:02:33]}  Bg6 {[%clk 0:02:30]} 24. Rxb7 {[%clk 0:02:27]}  Re8 {[%clk 0:02:27]} 25. h4 {[%clk 0:02:16]}  h6 {[%clk 0:02:23]} 26. Be3 {[%clk 0:02:13]}  Bf6 {[%clk 0:02:10]} 27. g3 {[%clk 0:02:06]}  Re7 {[%clk 0:02:00]} 28. Rb6 {[%clk 0:01:58]}  a5 {[%clk 0:01:57]} 29. Ra6 {[%clk 0:01:41]}  Bc3 {[%clk 0:01:56]} 30. Rxg6 {[%clk 0:01:39]}  a4 {[%clk 0:01:55]} 31. Bc4 {[%clk 0:01:30]}  Rc7 {[%clk 0:01:50]} 32. Rg4 {[%clk 0:01:30]}  h5 {[%clk 0:01:46]} 33. Re4 {[%clk 0:01:26]}  Kf8 {[%clk 0:01:46]} 34. Bb5 {[%clk 0:01:24]}  a3 {[%clk 0:01:45]} 35. Re8# {[%clk 0:01:24]} 1-0


[Site "https://www.chess.com"]